bitfinex/quotes_BTCUSD_20250617
["timestamp","ask_amount","ask_price","bid_price","bid_amount"]
[1750185028226,1.18043324,103710.0,103700.0,3.56650136]
[1750185028645,1.18043324,103710.0,103700.0,3.35362136]
[1750185028859,1.18043324,103710.0,103700.0,3.23090058]
[1750185029300,1.18043324,103710.0,103700.0,3.51066058]
[1750185029509,1.18043324,103710.0,103700.0,3.72246058]
[1750185029730,1.18043324,103710.0,103700.0,4.05702136]
[1750185029942,1.12727575,103710.0,103700.0,4.15419355]
[1750185030162,1.12727575,103710.0,103700.0,3.56642136]
[1750185030803,1.11763422,103710.0,103700.0,4.05802136]
[1750185031092,1.32755759,103710.0,103700.0,4.05802136]
[1750185031331,1.06131859,103710.0,103700.0,4.19294001]
[1750185031546,1.05167706,103710.0,103700.0,4.05802136]
[1750185031760,1.04349446,103710.0,103700.0,4.05802136]
[1750185031966,0.96178293,103710.0,103700.0,4.05802136]
[1750185032179,0.96178293,103710.0,103700.0,3.84622136]
[1750185032411,0.80972141,103710.0,103700.0,4.32613136]
[1750185032619,0.76284141,103710.0,103700.0,4.46073044]
[1750185032837,0.75319988,103710.0,103700.0,4.46073044]
[1750185033064,0.74355835,103710.0,103700.0,4.46073044]
[1750185033457,0.68741719,103710.0,103700.0,4.46073044]
[1750185033675,1.05024998,103710.0,103700.0,4.46073044]
[1750185033878,1.04060883,103710.0,103700.0,4.46073044]
[1750185034090,0.85183429,103710.0,103700.0,4.46073044]
[1750185034327,0.61613931,103710.0,103700.0,4.46173044]
[1750185034523,0.48300638,103710.0,103700.0,4.32713136]
[1750185034746,0.55454032,103710.0,103700.0,4.46173318]
[1750185034981,0.55454032,103710.0,103700.0,4.21069267]
[1750185035237,0.52149917,103710.0,103700.0,4.20969267]
[1750185035479,0.07691938,103750.0,103740.0,0.57624784]
[1750185035717,0.05376708,103750.0,103740.0,3.60895712]
[1750185035939,0.05376708,103750.0,103740.0,3.73977445]
[1750185036171,0.13991938,103770.0,103750.0,0.20240898]
[1750185036398,0.47991938,103770.0,103760.0,0.48350601]
[1750185037583,0.47991938,103770.0,103760.0,0.49804686]
[1750185037813,0.403,103770.0,103760.0,0.49804686]
[1750185038265,0.065,103770.0,103760.0,0.49804686]
[1750185038737,0.063,103770.0,103760.0,0.49804686]
[1750185039162,0.066,103770.0,103760.0,1.29301586]
[1750185039594,0.066,103770.0,103760.0,1.21000986]
[1750185040014,0.069,103770.0,103760.0,1.12182986]
[1750185040230,0.066,103770.0,103760.0,1.12182986]
[1750185040442,0.063,103770.0,103760.0,1.12182986]
[1750185040649,0.07,103770.0,103760.0,1.46182986]
[1750185041094,0.063,103770.0,103760.0,1.46182986]
[1750185041282,0.065,103770.0,103760.0,1.46182986]
[1750185041502,0.066,103770.0,103760.0,1.46182986]
[1750185041715,0.066,103770.0,103760.0,1.16002286]
[1750185041942,0.066,103770.0,103760.0,0.97035386]
[1750185042591,0.066,103770.0,103760.0,1.01603386]
[1750185042804,0.066,103770.0,103760.0,0.80475386]
[1750185043008,0.066,103770.0,103760.0,1.01591386]
[1750185043675,0.066,103770.0,103760.0,0.88360686]
[1750185044161,0.066,103770.0,103760.0,0.91192774]
[1750185044826,0.066,103770.0,103760.0,0.70076774]
[1750185045058,0.066,103770.0,103760.0,0.91128774]
[1750185045295,0.066,103770.0,103760.0,1.95369674]
[1750185046422,0.003,103770.0,103760.0,2.37177779]
[1750185046673,0.003,103770.0,103760.0,2.39224779]
[1750185046928,0.49500043,103820.0,103810.0,0.22155749]
[1750185047180,0.41808105,103820.0,103810.0,0.48295925]
[1750185047421,0.44828105,103820.0,103810.0,0.48295925]
[1750185047666,0.0302,103820.0,103810.0,0.48295925]
[1750185048389,0.0302,103820.0,103810.0,0.52300863]
[1750185049790,0.0613,103820.0,103810.0,0.52300863]
[1750185050261,0.0623,103820.0,103810.0,0.52300863]
[1750185050715,0.0613,103820.0,103810.0,0.52300863]
[1750185050938,0.0633,103820.0,103810.0,0.52300863]
[1750185051428,0.0633,103820.0,103810.0,0.87754948]
[1750185051664,0.0633,103820.0,103810.0,1.45988639]
[1750185051889,0.002,103820.0,103810.0,2.12110339]
[1750185052574,0.002,103820.0,103810.0,2.16618339]
[1750185052802,0.002,103820.0,103810.0,1.38557634]
[1750185053019,0.0641,103820.0,103810.0,1.48218034]
[1750185053509,0.0651,103820.0,103810.0,0.86210449]
[1750185053741,0.48318105,103820.0,103810.0,0.86210449]
[1750185053986,0.48318105,103820.0,103810.0,1.02726449]
[1750185054215,0.48218105,103820.0,103810.0,0.52210449]
[1750185054442,0.48218105,103820.0,103810.0,0.68722449]
[1750185054662,0.48418105,103820.0,103810.0,0.68722449]
[1750185054886,0.48418105,103820.0,103810.0,0.52210449]
[1750185055103,0.48418105,103820.0,103810.0,0.68730449]
[1750185055336,0.48418105,103820.0,103810.0,0.52210449]
[1750185055554,0.48418105,103820.0,103810.0,0.68726449]
[1750185056206,0.48218105,103820.0,103810.0,0.50283955]
[1750185056433,0.49181236,103820.0,103810.0,0.65676753]
[1750185056656,0.50144376,103820.0,103810.0,0.65676753]
[1750185057083,0.50444376,103820.0,103810.0,0.65676753]
[1750185057310,0.49481236,103820.0,103810.0,0.64713511]
[1750185057751,0.48518105,103820.0,103810.0,0.64713511]
[1750185058208,0.0671,103820.0,103810.0,0.64713511]
[1750185058437,0.0671,103820.0,103810.0,0.6859537]
[1750185059548,0.0641,103820.0,103810.0,0.6859537]
[1750185059979,0.0671,103820.0,103810.0,0.6859537]
[1750185061535,0.0671,103820.0,103810.0,1.0259537]
[1750185061977,0.0671,103820.0,103810.0,1.44403475]
[1750185062200,0.035,103820.0,103810.0,1.4585756]
[1750185062434,0.003,103820.0,103810.0,2.4069776]
[1750185062677,0.003,103820.0,103810.0,2.3666486]
[1750185063372,4.83993406,103850.0,103840.0,0.22149347]
[1750185063590,4.83993406,103850.0,103840.0,0.48269523]
[1750185065663,4.83993406,103850.0,103840.0,0.48569523]
[1750185066134,4.83993406,103850.0,103840.0,0.51177754]
[1750185066362,4.90153406,103850.0,103840.0,0.51177754]
[1750185066602,5.31961511,103850.0,103840.0,0.34681754]
[1750185066847,4.90153406,103850.0,103840.0,0.51181754]
[1750185067543,4.90153406,103850.0,103840.0,0.51173754]
[1750185067776,5.31961511,103850.0,103840.0,0.51173754]
[1750185068252,4.90153406,103850.0,103840.0,0.51173754]
[1750185068976,5.54108753,103850.0,103830.0,0.21188086]
[1750185069182,5.54108753,103850.0,103830.0,0.30812281]
[1750185069183,0.50174042,103840.0,103830.0,0.30812281]
[1750185069430,0.0649,103830.0,103820.0,0.40641692]
[1750185069644,0.0649,103830.0,103820.0,0.50265868]
[1750185070712,0.0649,103830.0,103820.0,0.50257868]
[1750185076001,0.0635,103840.0,103830.0,0.21186675]
[1750185076215,0.0635,103840.0,103830.0,0.30810851]
[1750185078311,0.0635,103840.0,103830.0,0.51794851]
[1750185079038,4.90563406,103850.0,103840.0,0.22149347]
[1750185079262,4.90563406,103850.0,103840.0,0.31773523]
[1750185079969,4.83993406,103850.0,103840.0,0.31773523]
[1750185080683,4.90313406,103850.0,103840.0,0.31773523]
[1750185082382,4.90313406,103850.0,103840.0,0.52753523]
[1750185083038,4.90313406,103850.0,103840.0,0.31773523]
[1750185083263,4.90313406,103850.0,103840.0,0.52757523]
[1750185084680,4.90313406,103850.0,103840.0,0.52745523]
[1750185086840,4.87153406,103850.0,103840.0,0.52745523]
[1750185087096,4.83993406,103850.0,103840.0,0.52745523]
[1750185087341,4.83993406,103850.0,103840.0,1.28553628]
[1750185087619,4.83993406,103850.0,103840.0,1.45930828]
[1750185087874,4.83993406,103850.0,103840.0,1.49060828]
[1750185088113,4.83993406,103850.0,103840.0,1.50514913]
[1750185088592,4.83993406,103850.0,103840.0,1.60081102]
[1750185089537,4.83993406,103850.0,103840.0,1.50514913]
[1750185090246,4.83993406,103850.0,103840.0,1.60081102]
[1750185090486,4.83993406,103850.0,103840.0,2.12039207]
[1750185090734,4.83993406,103850.0,103840.0,1.72158102]
[1750185090985,4.83993406,103850.0,103840.0,1.62008102]
[1750185092178,4.41072871,103850.0,103840.0,2.23360018]
[1750185092418,3.78553674,103850.0,103840.0,2.64274956]
[1750185092894,3.77590591,103850.0,103840.0,2.64274956]
[1750185093120,3.76627508,103850.0,103840.0,2.64274956]
[1750185093357,3.60642431,103850.0,103840.0,2.64274956]
[1750185093589,3.59679348,103850.0,103840.0,2.64274956]
[1750185093832,3.59679348,103850.0,103840.0,2.64474956]
[1750185094077,3.55979712,103850.0,103840.0,1.94002913]
[1750185094314,3.55016629,103850.0,103840.0,1.69102913]
[1750185094564,3.55016629,103850.0,103840.0,1.65757728]
[1750185094860,3.55016629,103850.0,103840.0,1.71034028]
[1750185095088,3.55016629,103850.0,103840.0,1.72488113]
[1750185095314,3.55016629,103850.0,103840.0,0.74221923]
[1750185095546,3.55016629,103850.0,103840.0,0.53073523]
[1750185095818,3.55016629,103850.0,103840.0,2.60717613]
[1750185096032,3.55016629,103850.0,103840.0,1.98567713]
[1750185096239,3.55016629,103850.0,103840.0,1.30131713]
[1750185096419,3.55016629,103850.0,103840.0,1.30031713]
[1750185097109,3.55016629,103850.0,103840.0,1.83169213]
[1750185097599,3.55016629,103850.0,103840.0,1.49519713]
[1750185098987,3.55016629,103850.0,103840.0,1.94567818]
[1750185099228,3.55016629,103850.0,103840.0,1.52402413]
[1750185100953,3.55016629,103850.0,103840.0,1.62552413]
[1750185101419,3.55016629,103850.0,103840.0,1.91662413]
[1750185102329,3.55016629,103850.0,103840.0,1.93577413]
[1750185102582,3.55016629,103850.0,103840.0,1.96807413]
[1750185102826,3.55016629,103850.0,103840.0,2.41875518]
[1750185104024,3.55016629,103850.0,103840.0,2.51441707]
[1750185104509,3.55016629,103850.0,103840.0,2.41875518]
[1750185105408,3.55016629,103850.0,103840.0,2.553357]
[1750185105645,1.08682717,103850.0,103840.0,2.67765518]
[1750185105875,0.72685041,103850.0,103840.0,2.77440871]
[1750185106091,0.7021712,103850.0,103840.0,2.813257]
[1750185106323,0.69254142,103850.0,103840.0,2.813257]
[1750185106551,0.59647142,103850.0,103840.0,2.812257]
[1750185106777,0.58684164,103850.0,103840.0,2.813257]
[1750185107005,0.54335164,103850.0,103840.0,2.813257]
[1750185107242,0.50664611,103850.0,103840.0,2.812257]
[1750185107584,0.50664611,103850.0,103840.0,2.602497]
[1750185107739,0.49701633,103850.0,103840.0,2.615497]
[1750185107984,0.48738655,103850.0,103840.0,2.674697]
[1750185108223,0.48738655,103850.0,103840.0,2.54009518]
[1750185108442,0.47775677,103850.0,103840.0,2.674697]
[1750185108692,0.33570147,103850.0,103840.0,2.674697]
[1750185108921,0.0632,103890.0,103880.0,0.57594904]
[1750185109172,0.0632,103890.0,103880.0,2.46353785]
[1750185109408,0.07691938,103920.0,103910.0,0.22134427]
[1750185109637,0.07691938,103920.0,103910.0,0.52670603]
[1750185109876,0.14141938,103920.0,103910.0,0.52670603]
[1750185110383,0.0645,103920.0,103910.0,0.52670603]
[1750185112361,0.0645,103920.0,103910.0,0.52646603]
[1750185113938,0.0645,103920.0,103910.0,0.52638603]
[1750185114397,0.48258105,103920.0,103910.0,0.48146603]
[1750185114836,0.0645,103920.0,103910.0,0.48146603]
[1750185115099,0.48258105,103920.0,103910.0,0.48146603]
[1750185115299,0.48258105,103920.0,103910.0,0.31758603]
[1750185115517,0.48258105,103920.0,103910.0,0.48150603]
[1750185116622,0.0645,103920.0,103910.0,0.48150603]
[1750185116847,0.48258105,103920.0,103910.0,0.48150603]
[1750185118446,0.0645,103920.0,103910.0,0.48150603]
[1750185118658,0.48258105,103920.0,103910.0,0.48150603]
[1750185124460,0.0645,103920.0,103910.0,0.55842541]
[1750185124889,0.0645,103920.0,103910.0,0.48150603]
[1750185125348,0.0645,103920.0,103910.0,0.82150603]
[1750185125586,0.0613,103930.0,103920.0,0.22132296]
[1750185125797,0.0613,103930.0,103920.0,0.31756472]
[1750185126234,0.0312,103930.0,103920.0,0.31756472]
[1750185126666,0.0639,103930.0,103920.0,0.31756472]
[1750185127998,0.48198105,103930.0,103920.0,0.31756472]
[1750185128223,0.07352112,103930.0,103920.0,0.31756472]
[1750185128439,0.50122347,103930.0,103920.0,0.48260472]
[1750185128658,0.49160217,103930.0,103920.0,0.48260472]
[1750185128879,0.49160217,103930.0,103920.0,0.31756472]
[1750185129159,0.49160217,103930.0,103920.0,0.48260472]
[1750185130102,0.48198105,103930.0,103920.0,0.48260472]
[1750185131236,0.0639,103930.0,103920.0,0.48260472]
[1750185131463,0.48198105,103930.0,103920.0,0.48008472]
[1750185132378,0.0639,103930.0,103920.0,0.48008472]
[1750185133129,0.48198105,103930.0,103920.0,0.48008472]
[1750185133567,0.0639,103930.0,103920.0,0.48008472]
[1750185134047,0.48198105,103930.0,103920.0,0.31504472]
[1750185134221,0.51084495,103930.0,103920.0,0.36244472]
[1750185134484,0.50122337,103930.0,103920.0,0.31756472]
[1750185134743,0.49160207,103930.0,103920.0,0.48256472]
[1750185135177,0.50122328,103930.0,103920.0,0.48256472]
[1750185135613,0.51084458,103930.0,103920.0,0.48256472]
[1750185136042,0.52046597,103930.0,103920.0,0.48256472]
[1750185137402,0.11200659,103930.0,103920.0,0.48256472]
[1750185137642,0.53008764,103930.0,103920.0,0.48256472]
[1750185137870,0.53008838,103930.0,103920.0,0.48256472]
[1750185138159,0.72252559,103930.0,103920.0,0.28869749]
[1750185138400,0.50122374,103930.0,103920.0,0.31756454]
[1750185139050,0.71290448,103930.0,103920.0,0.31756454]
[1750185139264,0.71290448,103930.0,103920.0,0.31756464]
[1750185140463,0.51084541,103930.0,103920.0,0.31756482]
[1750185140678,0.50122374,103930.0,103920.0,0.32718695]
[1750185141296,0.50122337,103930.0,103920.0,0.32718695]
[1750185141508,0.50122337,103930.0,103920.0,0.49206695]
[1750185141940,0.50122319,103930.0,103920.0,0.32718695]
[1750185142145,0.09276353,103930.0,103920.0,0.49202695]
[1750185142533,0.1023852,103930.0,103920.0,0.49202695]
[1750185142918,0.72252522,103930.0,103920.0,0.49202695]
[1750185143117,0.72252522,103930.0,103910.0,0.19247425]
[1750185143118,0.29174519,103920.0,103910.0,0.19247425]
[1750185143295,0.70982624,103920.0,103910.0,0.30796306]
[1750185143498,0.70020429,103920.0,103910.0,0.30796306]
[1750185143698,0.69058206,103920.0,103910.0,0.20209787]
[1750185143925,0.69058206,103920.0,103910.0,0.2117213]
[1750185144571,0.3049914,103910.0,103900.0,0.22134874]
[1750185144776,0.71344939,103910.0,103900.0,0.30796651]
[1750185144989,0.71344939,103910.0,103890.0,0.22135356]
[1750185144990,0.08364853,103900.0,103890.0,0.22135356]
[1750185145360,0.5341474,103900.0,103890.0,0.48243532]
[1750185145572,0.53414731,103900.0,103890.0,0.48243532]
[1750185145832,0.54377176,103900.0,103890.0,0.48239532]
[1750185146053,0.5533963,103900.0,103890.0,0.48239532]
[1750185146261,0.75551288,103900.0,103890.0,0.4727705]
[1750185146482,0.74588963,103900.0,103890.0,0.31759625]
[1750185146714,0.73826527,103900.0,103890.0,0.47277115]
[1750185146942,0.73926527,103900.0,103890.0,0.30797115]
[1750185147165,0.73926527,103900.0,103890.0,0.31759634]
[1750185147399,0.0961844,103900.0,103890.0,0.32722125]
[1750185147616,0.71638277,103900.0,103890.0,0.31759634]
[1750185148031,0.71638277,103900.0,103890.0,0.32722144]
[1750185148253,0.70675888,103900.0,103890.0,0.32722144]
[1750185148467,0.70675888,103900.0,103890.0,0.30797115]
[1750185148678,0.69713471,103900.0,103890.0,0.30797115]
[1750185148941,0.50464156,103900.0,103890.0,0.33684616]
[1750185149169,0.5142661,103900.0,103890.0,0.32722125]
[1750185149856,0.50464156,103900.0,103890.0,0.32722125]
[1750185150075,0.504641,103900.0,103890.0,0.32722125]
[1750185150295,0.51426545,103900.0,103890.0,0.32722125]
[1750185150505,0.50464073,103900.0,103890.0,0.32722125]
[1750185150727,0.49501674,103900.0,103890.0,0.32722125]
[1750185150953,0.50464063,103900.0,103890.0,0.32722125]
[1750185151168,0.48539294,103900.0,103890.0,0.32722125]
[1750185151383,0.06731189,103900.0,103890.0,0.32722125]
[1750185152318,0.07693578,103900.0,103890.0,0.32722125]
[1750185152547,0.06731189,103900.0,103890.0,0.49186125]
[1750185153409,0.50464082,103900.0,103890.0,0.49186125]
[1750185153603,0.49501674,103900.0,103890.0,0.49186125]
[1750185153860,0.48539294,103900.0,103890.0,0.49186125]
[1750185155651,0.06731189,103900.0,103890.0,0.49186125]
[1750185156791,0.003,103900.0,103890.0,0.49186125]
[1750185157458,0.003,103900.0,103890.0,1.39186168]
[1750185157894,0.003,103900.0,103890.0,0.89686125]
[1750185161414,0.003,103900.0,103890.0,0.99263717]
[1750185161625,0.003,103900.0,103890.0,2.74040522]
[1750185162063,0.002,103900.0,103890.0,2.74040522]
[1750185162491,0.0617,103920.0,103910.0,0.22134427]
[1750185162710,0.0617,103920.0,103910.0,0.48182603]
[1750185162929,0.0633,103930.0,103920.0,0.21168319]
[1750185163145,0.031,103930.0,103920.0,0.30792495]
[1750185163367,0.031,103930.0,103920.0,0.34194867]
[1750185163596,0.0783523,103940.0,103930.0,0.22130167]
[1750185163840,0.0783523,103940.0,103930.0,0.48178343]
[1750185166341,0.0783523,103940.0,103930.0,0.48378343]
[1750185166558,0.0783523,103940.0,103930.0,0.48278343]
[1750185166782,0.0823523,103940.0,103930.0,0.48178343]
[1750185166991,0.0853523,103940.0,103930.0,0.48178343]
[1750185168554,0.0853523,103940.0,103930.0,0.48150343]
[1750185170059,0.0853523,103940.0,103930.0,0.48154343]
[1750185171426,0.09497249,103940.0,103930.0,0.31758343]
[1750185171667,0.0949724,103940.0,103930.0,0.48134343]
[1750185171890,0.0853523,103940.0,103930.0,0.48134343]
[1750185172763,0.50343335,103940.0,103930.0,0.48134343]
[1750185173469,0.0853523,103940.0,103930.0,0.48134343]
[1750185173695,0.0853523,103940.0,103930.0,0.31758343]
[1750185174163,0.50343335,103940.0,103930.0,0.48134343]
[1750185174604,0.71509327,103940.0,103930.0,0.19247721]
[1750185174825,0.71509327,103940.0,103930.0,0.22134214]
[1750185175695,0.71509327,103940.0,103930.0,0.24058483]
[1750185175923,0.52267457,103940.0,103930.0,0.24058418]
[1750185176419,0.72471411,103940.0,103930.0,0.24058418]
[1750185176645,0.53229541,103940.0,103930.0,0.24058418]
[1750185177728,0.72471411,103940.0,103930.0,0.24058418]
[1750185178018,0.73433504,103940.0,103930.0,0.24058418]
[1750185178535,0.73433504,103940.0,103930.0,0.20209907]
[1750185178759,0.71509382,103940.0,103930.0,0.20209907]
[1750185178993,0.69585205,103940.0,103930.0,0.20209907]
[1750185179483,0.69585205,103940.0,103930.0,0.21172083]
[1750185179715,0.69585205,103940.0,103930.0,0.2213425]
[1750185180669,0.69585205,103940.0,103930.0,0.19247721]
[1750185180898,0.69585205,103940.0,103930.0,0.21172083]
[1750185181605,0.69585205,103940.0,103930.0,0.22134241]
[1750185182105,0.69585205,103940.0,103930.0,0.21172083]
[1750185182547,0.7054728,103940.0,103930.0,0.21172083]
[1750185183224,0.10459296,103940.0,103930.0,0.23096353]
[1750185183450,0.52267391,103940.0,103930.0,0.23096353]
[1750185183674,0.51305354,103940.0,103930.0,0.23096353]
[1750185183895,0.72471346,103940.0,103930.0,0.22134232]
[1750185184147,0.0853523,103940.0,103930.0,0.24058492]
[1750185184415,0.0853523,103940.0,103930.0,0.41374606]
[1750185184416,0.0530523,103940.0,103930.0,0.41374606]
[1750185184849,0.0530523,103940.0,103930.0,0.33682668]
[1750185185067,0.50373335,103940.0,103930.0,0.33682668]
[1750185185519,0.0856523,103940.0,103930.0,0.33682668]
[1750185189071,0.0226523,103940.0,103930.0,0.33682668]
[1750185189782,0.0857523,103940.0,103930.0,0.33682668]
[1750185191816,0.0857523,103940.0,103930.0,0.365578]
[1750185193646,0.0953724,103940.0,103930.0,0.365578]
[1750185193863,0.52307364,103940.0,103930.0,0.365578]
[1750185194292,0.50383335,103940.0,103930.0,0.365578]
[1750185197402,0.50383335,103940.0,103930.0,0.33682668]
[1750185198276,0.0857523,103940.0,103930.0,0.33682668]
[1750185198937,0.43848891,103940.0,103930.0,0.33682668]
[1750185199198,0.4577305,103940.0,103930.0,0.30796259]
[1750185199462,0.65977013,103940.0,103930.0,0.32720547]
[1750185199734,0.45773124,103940.0,103930.0,0.33682687]
[1750185199979,0.45832249,103940.0,103930.0,0.32720566]
[1750185200229,0.47756389,103940.0,103930.0,0.22134204]
[1750185200472,0.47756389,103940.0,103930.0,0.23096334]
[1750185200723,0.26590342,103940.0,103930.0,0.24058455]
[1750185200951,0.06054848,103940.0,103930.0,0.24058455]
[1750185201172,0.06295771,103940.0,103930.0,0.24058455]
[1750185201638,0.0725779,103940.0,103930.0,0.24058455]
[1750185201885,0.00240923,103940.0,103930.0,0.24058455]
[1750185202134,0.49693595,103950.0,103940.0,0.22128038]
[1750185202350,0.36235392,103950.0,103940.0,0.31752214]
[1750185203066,0.42525392,103950.0,103940.0,0.31752214]
[1750185203301,0.08213843,103950.0,103940.0,0.31752214]
[1750185203571,0.0629,103950.0,103940.0,0.31752214]
[1750185203820,0.07061825,103960.0,103950.0,0.21162214]
[1750185204038,0.08023659,103960.0,103950.0,0.3078639]
[1750185204254,0.4041142,103960.0,103950.0,0.3078639]
[1750185204477,0.39449595,103960.0,103950.0,0.3078639]
[1750185204948,0.60000681,103970.0,103960.0,0.22123781]
[1750185205166,0.59038884,103970.0,103960.0,0.22123781]
[1750185205388,0.08383511,103970.0,103960.0,0.22123781]
[1750185205621,0.07421751,103970.0,103960.0,0.22123781]
[1750185205840,0.04221751,103970.0,103960.0,0.22123781]
[1750185206057,0.00961751,103970.0,103960.0,0.22123781]
[1750185206275,0.34311346,103970.0,103960.0,0.22123781]
[1750185206484,0.35273115,103970.0,103960.0,0.22123781]
[1750185206959,0.0192352,103970.0,103960.0,0.22123781]
[1750185207172,0.02885308,103970.0,103960.0,0.22523781]
[1750185207394,0.74239333,103980.0,103970.0,0.21159902]
[1750185207616,0.07381667,103980.0,103970.0,0.31745847]
[1750185207831,0.07381649,103980.0,103970.0,0.32707598]
[1750185208057,0.00961593,103990.0,103980.0,0.21157849]
[1750185208274,0.07381575,103990.0,103980.0,0.22119498]
[1750185208489,0.09304706,103990.0,103980.0,0.22119498]
[1750185208931,0.10266318,103990.0,103980.0,0.22119498]
[1750185209146,0.09304706,103990.0,103980.0,0.22119498]
[1750185209374,0.10266309,103990.0,103980.0,0.22119498]
[1750185210299,0.11227921,103990.0,103980.0,0.22319498]
[1750185210530,0.11227921,103990.0,103980.0,0.22619498]
[1750185211407,0.09304725,103990.0,103980.0,0.22619498]
[1750185211622,0.10266337,103990.0,103980.0,0.22619498]
[1750185212054,0.05266337,103990.0,103980.0,0.22619498]
[1750185212273,0.05266337,103990.0,103980.0,0.32243674]
[1750185212274,0.01923122,103990.0,103980.0,0.32243674]
[1750185212494,0.03125638,103990.0,103980.0,0.32243674]
[1750185212916,0.02164045,103990.0,103980.0,0.32243674]
[1750185213140,0.02164045,103990.0,103980.0,0.32043674]
[1750185213367,0.02164045,103990.0,103980.0,0.30020348]
[1750185213368,0.64974219,103990.0,103980.0,0.30020348]
[1750185213588,0.64733296,103990.0,103980.0,0.30020348]
[1750185213815,0.64733296,103990.0,103980.0,0.30782034]
[1750185214025,0.45500678,103990.0,103980.0,0.32705359]
[1750185214235,0.43577427,103990.0,103980.0,0.32705359]
[1750185214453,0.01923103,103990.0,103980.0,0.32705359]
[1750185214684,0.02884678,103990.0,103980.0,0.32705359]
[1750185215349,0.02884678,103990.0,103980.0,0.35588986]
[1750185215769,0.04087194,103990.0,103980.0,0.35588986]
[1750185215989,0.03125601,103990.0,103980.0,0.35588986]
[1750185216213,0.04087194,103990.0,103980.0,0.35588986]
[1750185216455,0.04087194,103990.0,103980.0,0.32705359]
[1750185216679,0.04087204,103990.0,103980.0,0.32705359]
[1750185216886,0.03125601,103990.0,103980.0,0.32705359]
[1750185217547,0.05048797,103990.0,103980.0,0.32705359]
[1750185217778,0.30285664,104010.0,104000.0,0.20192307]
[1750185217988,1.22275923,104010.0,104000.0,0.00961538]
[1750185218197,1.05939923,104010.0,104000.0,0.21153836]
[1750185218412,1.25355923,104010.0,104000.0,0.22115355]
[1750185219322,3.87195669,103950.0,103930.0,0.89838004]
[1750185219543,3.78135669,103950.0,103940.0,6.64545733]
[1750185219759,3.77173593,103950.0,103940.0,6.25878774]
[1750185219973,3.71133107,103950.0,103940.0,6.25878774]
[1750185220438,3.70051204,103950.0,103940.0,6.25878774]
[1750185220878,3.70051204,103950.0,103940.0,6.26878774]
[1750185220879,3.69089154,103950.0,103940.0,6.26878774]
[1750185221096,3.66716302,103950.0,103940.0,6.26878774]
[1750185221308,3.65754252,103950.0,103940.0,6.60878774]
[1750185221754,3.60131202,103950.0,103940.0,6.64245236]
[1750185222218,3.54421152,103950.0,103940.0,6.64245236]
[1750185222456,3.53459102,103950.0,103940.0,6.64245236]
[1750185222677,3.39144102,103950.0,103940.0,6.738321]
[1750185222899,3.38182052,103950.0,103940.0,6.738321]
[1750185223110,3.33481052,103950.0,103940.0,6.738321]
[1750185223322,3.32519002,103950.0,103940.0,6.738321]
[1750185223617,3.31556952,103950.0,103940.0,6.738321]
[1750185224070,3.25851902,103950.0,103940.0,6.738321]
[1750185224286,3.21098902,103950.0,103940.0,6.64245236]
[1750185224514,1.81755935,103950.0,103940.0,7.31049495]
[1750185224749,1.81192036,103950.0,103940.0,7.31049495]
[1750185225010,1.81192036,103950.0,103940.0,8.09319495]
[1750185225011,2.70228731,103950.0,103940.0,8.09319495]
[1750185225250,2.64291681,103950.0,103940.0,8.18906359]
[1750185225597,2.64291681,103950.0,103940.0,8.21334649]
[1750185225820,1.82364631,103950.0,103940.0,8.11747785]
[1750185226026,1.72902581,103950.0,103940.0,8.11747785]
[1750185226239,1.46904812,103950.0,103940.0,8.14281272]
[1750185226457,1.32926742,103950.0,103940.0,8.14281272]
[1750185226682,1.94433136,103950.0,103940.0,8.14281272]
[1750185226921,1.90091086,103950.0,103940.0,8.14281272]
[1750185227134,1.07009525,103950.0,103940.0,7.89467785]
[1750185227366,1.01307476,103950.0,103940.0,8.13469272]
[1750185227604,1.00345426,103950.0,103940.0,7.93901272]
[1750185227830,1.00345426,103950.0,103940.0,8.14669272]
[1750185228048,0.99383785,103950.0,103940.0,8.14669272]
[1750185228503,0.98422144,103950.0,103940.0,8.14669272]
[1750185228957,0.97460503,103950.0,103940.0,8.14661272]
[1750185229165,1.4227487,103950.0,103940.0,8.14661272]
[1750185229384,1.36673229,103950.0,103940.0,8.14661272]
[1750185229629,1.31040588,103950.0,103940.0,8.14661272]
[1750185230047,1.30078947,103950.0,103940.0,7.93901272]
[1750185230258,1.30078947,103950.0,103940.0,8.14661272]
[1750185230485,1.25627306,103950.0,103940.0,8.14661272]
[1750185230714,1.25627306,103950.0,103940.0,7.68045236]
[1750185230930,1.24665665,103950.0,103940.0,7.92978207]
[1750185231142,1.15026666,103950.0,103940.0,7.72218207]
[1750185231366,1.09635025,103950.0,103940.0,8.02565071]
[1750185231584,1.03948882,103950.0,103940.0,8.02565071]
[1750185231800,1.03948882,103950.0,103940.0,6.93339756]
[1750185232032,1.03948882,103950.0,103940.0,7.79348286]
[1750185232239,1.03948882,103950.0,103940.0,4.88019507]
[1750185232449,1.03948882,103950.0,103940.0,5.29091507]
[1750185232679,1.03948882,103950.0,103940.0,5.63091507]
[1750185232891,1.03948882,103950.0,103940.0,5.62391507]
[1750185233102,1.03948882,103950.0,103940.0,5.97639207]
[1750185233326,1.03948882,103950.0,103940.0,5.96439207]
[1750185233543,1.03948882,103950.0,103940.0,5.97439207]
[1750185234076,1.03948882,103950.0,103940.0,5.97435207]
[1750185234350,1.03948882,103950.0,103940.0,5.76679207]
[1750185234582,1.03948882,103950.0,103940.0,5.97435207]
[1750185235156,1.03948882,103950.0,103940.0,5.72478544]
[1750185236016,1.03948882,103950.0,103940.0,4.99527977]
[1750185236210,1.03948882,103950.0,103940.0,4.77073592]
[1750185236463,1.03948882,103950.0,103940.0,4.12537992]
[1750185236720,1.03948882,103950.0,103940.0,4.12037992]
[1750185236979,1.03948882,103950.0,103940.0,4.12492077]
[1750185237226,1.03948882,103950.0,103940.0,4.13692077]
[1750185237488,1.07048882,103950.0,103940.0,3.64532077]
[1750185237802,1.07048882,103950.0,103940.0,3.43776077]
[1750185238027,1.10168882,103950.0,103940.0,3.64532077]
[1750185238311,1.10168882,103950.0,103940.0,2.56927677]
[1750185238705,1.10168882,103950.0,103940.0,2.22927677]
[1750185238999,1.10168882,103950.0,103940.0,2.56927677]
[1750185240628,1.03948882,103950.0,103940.0,2.98558244]
[1750185241309,1.03948882,103950.0,103940.0,3.08145108]
[1750185241777,1.03948882,103950.0,103940.0,2.70950426]
[1750185242712,1.07028882,103950.0,103940.0,2.41840426]
[1750185242940,1.07028882,103950.0,103940.0,1.98755774]
[1750185243175,1.10298882,103950.0,103940.0,1.24291874]
[1750185243413,1.10298882,103950.0,103940.0,0.90079692]
[1750185243634,1.10298882,103950.0,103940.0,1.09398477]
[1750185243855,1.10298882,103950.0,103940.0,1.08598477]
[1750185244088,1.10298882,103950.0,103940.0,1.29477044]
[1750185244314,1.10298882,103950.0,103940.0,1.50629044]
[1750185244546,1.10298882,103950.0,103940.0,1.50229044]
[1750185244989,1.10298882,103950.0,103940.0,1.08798477]
[1750185245420,1.10298882,103950.0,103940.0,1.50429044]